bitfinex/quotes_SOLUSD_20250107
["timestamp","ask_amount","ask_price","bid_price","bid_amount"]
[1736239608235,8.99963535,216.6,216.55,9.4951018]
[1736239608431,8.99963535,216.59,216.55,2.26085134]
[1736239608851,8.99963535,216.59,216.55,4.25204785]
[1736239609659,8.99963535,216.6,216.55,4.25204785]
[1736239609835,8.99963535,216.62,216.56,8.99963535]
[1736239610955,8.99963535,216.62,216.57,1.99141502]
[1736239611361,8.99963535,216.63,216.58,23.776884]
[1736239613337,8.99963535,216.62,216.58,23.776884]
[1736239613662,8.99963535,216.62,216.57,0.6924074]
[1736239613871,8.99963535,216.61,216.57,23.776884]
[1736239614167,8.99963535,216.61,216.57,25.76908926]
[1736239614937,8.99963535,216.61,216.57,23.776884]
[1736239615757,8.99963535,216.61,216.58,1.99295726]
[1736239616864,8.99963535,216.61,216.57,1.99295726]
[1736239617550,11.5381,216.68,216.57,1.99295726]
[1736239617551,11.5381,216.68,216.58,1.99295726]
[1736239617744,8.99963535,216.62,216.58,1.99295726]
[1736239618146,8.99963535,216.61,216.58,1.99295726]
[1736239618347,8.99963535,216.61,216.59,1.99295726]
[1736239618866,8.99963535,216.61,216.6,1.99295726]
[1736239619367,8.99963535,216.62,216.6,1.99295726]
[1736239619860,11.5381,216.68,216.6,1.99295726]
[1736239620061,8.99963535,216.63,216.6,1.99295726]
[1736239620364,8.99963535,216.63,216.57,16.92627349]
[1736239620888,11.5381,216.68,216.58,10.99705872]
[1736239621070,8.99963535,216.64,216.58,10.99705872]
[1736239621372,8.99963535,216.64,216.59,1.99742337]
[1736239622054,8.99963535,216.64,216.6,1.99742337]
[1736239622260,8.99963535,216.65,216.6,1.99742337]
[1736239622770,8.99963535,216.65,216.61,1.99742337]
[1736239623158,8.99963535,216.64,216.61,1.99742337]
[1736239623472,8.99963535,216.64,216.62,1.99742337]
[1736239624172,8.99963535,216.64,216.59,7.23425046]
[1736239624775,8.99963535,216.64,216.6,1.99986821]
[1736239625574,8.99963535,216.64,216.61,1.99986821]
[1736239626353,8.99963535,216.64,216.62,1.99986821]
[1736239627174,8.99963535,216.64,216.63,1.99986821]
[1736239629786,8.99963535,216.65,216.63,1.99986821]
[1736239630281,8.99963535,216.65,216.64,1.99986821]
[1736239631577,11.5381,216.68,216.64,1.99986821]
[1736239631781,8.99963535,216.65,216.64,1.99986821]
[1736239631959,11.5381,216.68,216.64,1.99986821]
[1736239632368,8.99963535,216.65,216.64,1.99986821]
[1736239632889,8.99963535,216.65,216.64,9.23411867]
[1736239634188,11.5381,216.68,216.64,9.23411867]
[1736239634389,8.99963535,216.65,216.64,9.23411867]
[1736239635803,1.94,216.71,216.64,9.23411867]
[1736239636019,8.99963535,216.67,216.64,9.23411867]
[1736239636304,11.5359,216.72,216.64,9.23411867]
[1736239636605,8.99963535,216.68,216.64,7.23425046]
[1736239636813,8.99963535,216.68,216.65,7.23425046]
[1736239637008,8.99963535,216.68,216.65,9.23550911]
[1736239637373,11.5359,216.72,216.65,9.23550911]
[1736239637575,11.5359,216.72,216.65,7.23425046]
[1736239637769,8.99963535,216.68,216.65,7.23425046]
[1736239638310,8.99963535,216.67,216.65,7.23425046]
[1736239638919,11.5359,216.72,216.65,7.23425046]
[1736239639067,8.99963535,216.7,216.64,23.47082091]
[1736239639395,8.99963535,216.7,216.66,1.9988263]
[1736239639587,8.99963535,216.7,216.67,7.22024122]
[1736239639785,8.99963535,216.7,216.66,1.9988263]
[1736239640187,8.99963535,216.7,216.67,1.9988263]
[1736239640485,8.99963535,216.71,216.67,1.9988263]
[1736239640785,8.99963535,216.71,216.64,8.99963535]
[1736239640987,8.99963535,216.71,216.68,7.21872599]
[1736239642996,8.99963535,216.72,216.68,7.21872599]
[1736239643295,8.99963535,216.74,216.68,16.21836134]
[1736239643496,8.99963535,216.75,216.68,16.21836134]
[1736239643795,8.99963535,216.75,216.71,7.21872599]
[1736239644383,1.94,216.79,216.71,7.21872599]
[1736239644706,8.99963535,216.75,216.71,7.21872599]
[1736239644998,1.94,216.79,216.71,7.21872599]
[1736239645203,8.99963535,216.75,216.71,7.21872599]
[1736239645815,11.5317,216.8,216.71,7.21872599]
[1736239646105,8.99963535,216.76,216.71,7.21872599]
[1736239646287,11.5317,216.8,216.71,7.21872599]
[1736239646488,8.99963535,216.76,216.71,7.21872599]
[1736239646807,8.99963535,216.76,216.7,16.21836134]
[1736239647804,8.99963535,216.76,216.7,16.91035925]
[1736239649298,8.99963535,216.76,216.7,16.21836134]
[1736239649499,8.99963535,216.76,216.7,7.21872599]
[1736239649682,8.99963535,216.73,216.7,7.21872599]
[1736239650295,8.99963535,216.73,216.69,7.21872599]
[1736239651610,11.5317,216.8,216.69,7.21872599]
[1736239651817,8.99963535,216.74,216.69,7.21872599]
[1736239652003,8.99963535,216.74,216.68,16.21836134]
[1736239652312,8.99963535,216.73,216.68,7.21872599]
[1736239653010,8.99963535,216.73,216.69,1.9894418]
[1736239653486,13.4717,216.8,216.69,10.98907715]
[1736239653686,8.99963535,216.75,216.69,10.98907715]
[1736239653888,8.99963535,216.74,216.69,9.20816779]
[1736239654107,8.99963535,216.74,216.69,7.21872599]
[1736239654579,8.99963535,216.73,216.69,7.21872599]
[1736239654785,8.99963535,216.73,216.68,7.21872599]
[1736239655395,8.99963535,216.73,216.69,9.20752742]
[1736239655706,8.99963535,216.74,216.69,9.20752742]
[1736239656212,8.99963535,216.74,216.69,7.21872599]
[1736239657403,13.4717,216.8,216.69,16.21836134]
[1736239657608,13.4717,216.8,216.7,8.99963535]
[1736239657811,8.99963535,216.76,216.7,8.99963535]
[1736239659000,8.99963535,216.75,216.69,16.91036684]
[1736239659513,8.99963535,216.75,216.69,9.69164085]
[1736239660517,8.99963535,216.75,216.7,1.98778505]
[1736239661020,8.99963535,216.75,216.69,9.69164085]
[1736239662489,8.99963535,216.76,216.7,10.98750788]
[1736239663293,8.99963535,216.76,216.7,8.99963535]
[1736239665321,8.99963535,216.79,216.73,8.99963535]
[1736239665619,8.99963535,216.79,216.73,9.69151448]
[1736239665995,13.1064,216.84,216.74,8.99963535]
[1736239665996,8.99963535,216.8,216.74,8.99963535]
[1736239666612,1.94,216.86,216.75,8.99963535]
[1736239666802,8.99963535,216.81,216.75,8.99963535]
[1736239667212,11.5271,216.88,216.76,8.99963535]
[1736239667522,8.99963535,216.82,216.76,9.69147327]
[1736239667699,8.99963535,216.82,216.76,8.99963535]
[1736239667893,11.5271,216.88,216.75,9.69141382]
[1736239667894,8.99963535,216.81,216.75,9.69141382]
[1736239668123,8.99963535,216.78,216.73,6.3763]
[1736239668303,20.0,216.85,216.73,6.3763]
[1736239668510,8.99963535,216.77,216.73,6.3763]
[1736239669020,8.99963535,216.75,216.73,6.3763]
[1736239669621,8.99963535,216.76,216.73,6.3763]
[1736239669997,11.5298,216.83,216.73,15.37593535]
[1736239670213,8.99963535,216.79,216.73,15.37593535]
[1736239670407,11.5298,216.83,216.73,15.37593535]
[1736239670593,8.99963535,216.78,216.73,15.37593535]
[1736239671125,11.5298,216.83,216.73,15.37593535]
[1736239671422,8.99963535,216.78,216.73,15.37593535]
[1736239673222,11.5298,216.83,216.73,15.37593535]
[1736239673440,8.99963535,216.78,216.73,15.37593535]
[1736239674622,11.5298,216.83,216.73,15.37593535]
[1736239674801,8.99963535,216.78,216.73,15.37593535]
[1736239676130,8.99963535,216.79,216.73,15.37593535]
[1736239677200,8.99963535,216.79,216.74,9.69151866]
[1736239677738,8.99963535,216.8,216.74,9.69151866]
[1736239678095,8.99963535,216.82,216.76,8.99963535]
[1736239678299,11.5298,216.83,216.76,8.99963535]
[1736239678613,8.99963535,216.81,216.75,8.99963535]
[1736239678804,8.99963535,216.82,216.75,8.99963535]
[1736239679335,8.99963535,216.81,216.75,8.99963535]
[1736239680205,8.99963535,216.81,216.74,0.69188331]
[1736239680206,8.99963535,216.8,216.74,9.69151866]
[1736239680428,11.5298,216.83,216.73,22.59466134]
[1736239680732,8.99963535,216.8,216.74,9.69154334]
[1736239680935,8.99963535,216.81,216.74,9.69154334]
[1736239681127,8.99963535,216.81,216.75,1.98828268]
[1736239681616,8.99963535,216.81,216.74,9.69154334]
[1736239683016,8.99963535,216.81,216.75,1.98945424]
[1736239683735,8.99963535,216.81,216.74,9.69154334]
[1736239683934,8.99963535,216.79,216.74,0.69190799]
[1736239685137,8.99963535,216.79,216.75,1.99086111]
[1736239685638,1.94,216.87,216.76,21.99086111]
[1736239685953,8.99963535,216.8,216.76,21.99086111]
[1736239686325,8.99963535,216.81,216.76,20.0]
[1736239686944,8.99963535,216.8,216.76,20.0]
[1736239687638,11.5281,216.86,216.76,20.0]
[1736239687639,8.99963535,216.81,216.76,20.0]
[1736239688034,8.99963535,216.8,216.77,1.99180926]
[1736239688234,8.99963535,216.81,216.77,1.99180926]
[1736239688829,8.99963535,216.81,216.76,20.0]
[1736239690236,8.99963535,216.81,216.77,1.9918589]
[1736239690947,8.99963535,216.81,216.76,27.21872599]
[1736239692138,8.99963535,216.81,216.77,1.99186211]
[1736239692519,8.99963535,216.81,216.76,27.21872599]
[1736239692719,8.99963535,216.82,216.76,36.21836134]
[1736239693122,8.99963535,216.82,216.76,27.21872599]
[1736239693328,8.99963535,216.81,216.78,7.21872599]
[1736239694136,8.99963535,216.81,216.79,1.99125747]
[1736239694327,8.99963535,216.82,216.79,1.99125747]
[1736239694848,8.99963535,216.82,216.78,7.21872599]
[1736239695246,8.99963535,216.81,216.78,7.21872599]
[1736239695943,8.99963535,216.81,216.77,7.21872599]
[1736239696442,8.99963535,216.81,216.78,7.21872599]
[1736239696824,8.99963535,216.81,216.77,7.21872599]
[1736239697018,8.99963535,216.81,216.78,1.99150686]
[1736239697439,11.5281,216.86,216.78,1.99150686]
[1736239697643,8.99963535,216.81,216.77,7.21872599]
[1736239697945,11.5281,216.86,216.77,7.21872599]
[1736239698140,8.99963535,216.83,216.77,16.21836134]
[1736239698324,8.99963535,216.82,216.78,7.21872599]
[1736239698529,8.99963535,216.81,216.78,7.21872599]
[1736239699024,8.99963535,216.81,216.77,7.21872599]
[1736239699543,8.99963535,216.81,216.78,1.99177179]
[1736239699932,11.5281,216.86,216.78,9.21049778]
[1736239700132,8.99963535,216.82,216.78,7.21872599]
[1736239702349,11.5281,216.86,216.78,7.21872599]
[1736239702350,8.99963535,216.81,216.78,7.21872599]
[1736239702537,8.99963535,216.8,216.78,7.21872599]
[1736239702931,8.99963535,216.79,216.78,7.21872599]
[1736239703132,8.99963535,216.79,216.77,7.21872599]
[1736239703450,8.99963535,216.81,216.77,7.21872599]
[1736239704127,8.99963535,216.8,216.77,7.21872599]
[1736239704753,8.99963535,216.8,216.76,27.21872599]
[1736239705253,8.99963535,216.8,216.77,7.21872599]
[1736239705753,8.99963535,216.8,216.78,1.99344365]
[1736239705967,11.5281,216.86,216.78,1.99344365]
[1736239706132,8.99963535,216.81,216.78,1.99344365]
[1736239706841,8.99963535,216.81,216.77,7.21872599]
[1736239707059,8.99963535,216.81,216.78,7.21872599]
[1736239707247,8.99963535,216.81,216.77,7.21872599]
[1736239707755,8.99963535,216.81,216.78,7.21872599]
[1736239707953,8.99963535,216.81,216.78,9.21382281]
[1736239708859,8.99963535,216.81,216.78,7.21872599]
[1736239710166,8.99963535,216.81,216.79,1.99675733]
[1736239710644,8.99963535,216.81,216.78,7.21872599]
[1736239712356,8.99963535,216.81,216.79,1.99701065]
[1736239712853,8.99963535,216.81,216.78,7.21872599]
[1736239714065,8.99963535,216.81,216.79,7.21872599]
[1736239714245,8.99963535,216.81,216.79,9.2157395]
[1736239714765,11.5281,216.86,216.79,9.2157395]
[1736239714934,11.5281,216.86,216.79,7.21872599]
[1736239715134,8.99963535,216.81,216.79,7.21872599]
[1736239715769,8.99963535,216.81,216.8,7.21872599]
[1736239718760,8.99963535,216.81,216.8,9.21594576]
[1736239725659,8.99963535,216.81,216.8,1.99721977]
[1736239725850,8.99963535,216.81,216.79,7.21872599]
[1736239726050,8.99963535,216.8,216.79,7.21872599]
[1736239726771,8.99963535,216.8,216.78,14.43745198]
[1736239727266,8.99963535,216.8,216.79,1.99755724]
[1736239728574,8.99963535,216.8,216.79,9.21283155]
[1736239729367,8.99963535,216.8,216.79,7.21527431]
[1736239731451,11.5281,216.86,216.79,7.21527431]
[1736239731772,8.99963535,216.8,216.79,14.43745198]
[1736239732672,8.99963535,216.8,216.79,16.43469322]
[1736239733970,11.5281,216.86,216.79,16.43469322]
[1736239734162,8.99963535,216.8,216.79,16.43469322]
[1736239734871,8.99963535,216.8,216.79,1.99724124]
[1736239735074,8.99963535,216.8,216.78,14.43745198]
[1736239735374,8.99963535,216.79,216.78,7.21710365]
[1736239736478,8.99963535,216.79,216.77,7.21710365]
[1736239736643,8.99963535,216.78,216.77,7.21710365]
[1736239741880,8.99963535,216.78,216.76,7.21710365]
[1736239742050,8.99963535,216.77,216.76,7.21710365]
[1736239742250,13.4717,216.8,216.76,7.21710365]
[1736239742554,8.99963535,216.77,216.76,9.21113091]
[1736239746179,8.99963535,216.77,216.76,14.21113091]
[1736239746780,8.99963535,216.77,216.76,12.21710365]
[1736239748647,20.53253535,216.77,216.76,12.21710365]
[1736239750556,20.53253535,216.77,216.76,5.0]
[1736239751180,20.53253535,216.77,216.76,6.99318833]
[1736239751477,20.53253535,216.77,216.76,5.0]
[1736239751679,20.53253535,216.77,216.76,6.99317168]
[1736239752580,20.53253535,216.77,216.76,5.0]
[1736239759274,20.53253535,216.77,216.7,1.99259631]
[1736239759483,8.99963535,216.71,216.7,1.99259631]
[1736239759959,8.99963535,216.71,216.66,8.73860365]
[1736239760158,8.99963535,216.7,216.66,8.73860365]
[1736239760690,8.99963535,216.7,216.67,1.99191566]
[1736239760886,8.99963535,216.7,216.67,9.20901931]
[1736239761391,8.99963535,216.7,216.68,1.99191566]
[1736239762190,8.99963535,216.71,216.69,1.99191566]
[1736239762988,8.99963535,216.71,216.7,1.99191566]
[1736239764484,23.0612,216.82,216.7,1.99191566]
[1736239764674,13.4708,216.81,216.7,1.99191566]
[1736239765188,8.99963535,216.75,216.7,1.99191566]
[1736239765370,20.0,216.78,216.7,1.99191566]
[1736239765565,8.99963535,216.75,216.7,8.26711566]
[1736239765763,8.99963535,216.75,216.71,1.99191566]
[1736239766183,8.99963535,216.74,216.71,1.99191566]
[1736239766371,8.99963535,216.74,216.7,6.2752]
[1736239766372,8.99963535,216.74,216.72,1.99191566]
[1736239767090,8.99963535,216.74,216.7,6.2752]
[1736239767990,8.99963535,216.74,216.71,1.9920616]
[1736239768694,8.99963535,216.74,216.7,6.2752]
[1736239770180,8.99963535,216.73,216.71,1.99246807]
[1736239770790,8.99963535,216.73,216.72,1.99246807]
[1736239772790,8.99963535,216.74,216.72,1.99246807]
[1736239773471,8.99963535,216.74,216.7,6.2752]
[1736239774166,8.99963535,216.74,216.71,1.99265659]
[1736239774767,8.99963535,216.72,216.71,1.99265659]
[1736239774963,8.99963535,216.72,216.7,6.2752]
[1736239775408,20.0,216.78,216.7,6.2752]
[1736239775713,8.99963535,216.73,216.7,6.2752]
[1736239775874,8.99963535,216.73,216.71,1.99281607]
[1736239776584,8.99963535,216.73,216.72,1.99281607]
[1736239777207,11.5292,216.85,216.73,1.6047]
[1736239777415,8.99963535,216.81,216.75,8.99963535]
[1736239778001,8.99963535,216.81,216.76,1.99281607]
[1736239778800,8.99963535,216.8,216.76,1.99281607]
[1736239779010,8.99963535,216.8,216.77,1.99281607]
[1736239779609,8.99963535,216.8,216.73,17.821439]
[1736239779807,8.99963535,216.79,216.73,17.821439]
[1736239780009,8.99963535,216.76,216.73,8.82180365]
[1736239780212,8.99963535,216.76,216.73,1.6047]
[1736239780385,8.99963535,216.76,216.74,1.99286367]
[1736239780873,8.99963535,216.77,216.74,1.99286367]
[1736239781074,8.99963535,216.77,216.75,1.99286367]
[1736239781784,8.99963535,216.77,216.73,1.6047]
[1736239782401,8.99963535,216.77,216.74,1.99287278]
[1736239783106,8.99963535,216.77,216.75,1.99287278]
[1736239783797,8.99963535,216.77,216.76,1.99287278]
[1736239785005,8.99963535,216.77,216.73,8.82180365]
[1736239785302,8.99963535,216.77,216.73,1.6047]
[1736239785884,8.99963535,216.77,216.74,1.99285199]
[1736239786479,8.99963535,216.77,216.75,1.99285199]
[1736239787105,8.99963535,216.77,216.73,1.6047]
[1736239787584,8.99963535,216.75,216.72,7.21710365]
[1736239787790,8.99963535,216.75,216.74,1.99289063]
[1736239789003,8.99963535,216.77,216.74,1.99289063]
[1736239789701,8.99963535,216.77,216.75,1.99289063]
[1736239790418,8.99963535,216.77,216.76,1.99289063]
[1736239790795,8.99963535,216.77,216.72,7.21710365]
[1736239791306,8.99963535,216.77,216.73,1.99254694]
[1736239791814,8.99963535,216.77,216.73,9.20965059]
[1736239791987,11.5297,216.83,216.74,1.99254694]
[1736239792186,8.99963535,216.77,216.74,1.99254694]
[1736239792906,8.99963535,216.77,216.75,1.99254694]
[1736239793288,8.99963535,216.77,216.72,7.21710365]
[1736239793910,8.99963535,216.77,216.73,1.99244449]
[1736239794407,11.5278,216.87,216.75,8.99963535]
[1736239794710,8.99963535,216.81,216.75,8.99963535]
[1736239794905,8.99963535,216.83,216.76,8.99963535]
[1736239795110,8.99963535,216.83,216.75,7.21710365]
[1736239795111,8.99963535,216.82,216.75,16.216739]
[1736239795286,8.99963535,216.82,216.76,1.99244449]
[1736239795488,8.99963535,216.82,216.76,9.20954814]
[1736239796114,8.99963535,216.82,216.77,1.99244449]
[1736239796312,13.4678,216.87,216.77,1.99244449]
[1736239796527,8.99963535,216.83,216.77,10.99207984]
[1736239796693,8.99963535,216.83,216.78,1.99244449]
[1736239796891,8.99963535,216.82,216.78,1.99244449]
[1736239797199,8.99963535,216.82,216.76,8.99963535]
[1736239797912,8.99963535,216.82,216.77,1.99039415]
[1736239798713,8.99963535,216.82,216.78,1.99039415]
[1736239799111,8.99963535,216.82,216.79,1.99039415]
[1736239799612,8.99963535,216.84,216.79,1.99039415]
[1736239800098,8.99963535,216.84,216.78,8.99963535]
[1736239800299,8.99963535,216.83,216.77,8.99963535]
[1736239800498,8.99963535,216.82,216.76,22.428139]
[1736239800798,8.99963535,216.82,216.78,1.98920132]
[1736239801519,8.99963535,216.82,216.79,1.98920132]
[1736239801901,8.99963535,216.81,216.79,1.98920132]
[1736239802201,8.99963535,216.81,216.76,15.21103535]
[1736239802914,8.99963535,216.81,216.77,1.9884487]
[1736239803320,8.99963535,216.82,216.77,1.9884487]
[1736239803939,8.99963535,216.82,216.78,1.9884487]
[1736239804492,8.99963535,216.81,216.76,6.2114]
[1736239804693,8.99963535,216.81,216.76,15.21103535]
[1736239805107,8.99963535,216.81,216.77,1.9883157]
[1736239805729,8.99963535,216.81,216.78,1.9883157]
[1736239806229,8.99963535,216.79,216.78,1.9883157]
[1736239806393,8.99963535,216.79,216.74,8.71800365]
[1736239806595,8.99963535,216.78,216.74,1.5009]
[1736239807108,11.5278,216.87,216.75,21.98928632]
[1736239807309,8.99963535,216.76,216.75,1.98928632]
[1736239816144,1.94,216.81,216.75,1.98928632]
[1736239816322,8.99963535,216.76,216.75,1.98928632]
[1736239822612,8.99963535,216.76,216.71,7.21710365]
[1736239822813,8.99963535,216.75,216.71,7.21710365]
[1736239823134,8.99963535,216.75,216.7,7.21710365]
[1736239823342,8.99963535,216.75,216.72,1.99118776]
[1736239823834,8.99963535,216.75,216.73,1.99118776]
[1736239824132,8.99963535,216.74,216.73,1.99118776]
[1736239832531,8.99963535,216.74,216.7,7.21710365]
[1736239832729,8.99963535,216.73,216.7,7.21710365]
[1736239833349,8.99963535,216.73,216.71,1.99016384]
[1736239833536,8.99963535,216.74,216.71,1.99016384]
[1736239834251,8.99963535,216.74,216.72,1.99016384]
[1736239834454,8.99963535,216.73,216.72,1.99016384]
[1736239834955,8.99963535,216.73,216.69,7.21710365]
[1736239835137,8.99963535,216.7,216.69,7.21710365]
[1736239835744,8.99963535,216.7,216.66,7.21710365]
[1736239836063,8.99963535,216.7,216.67,1.98993434]
[1736239836450,8.99963535,216.7,216.67,46.98993434]
[1736239836747,8.99963535,216.7,216.68,1.98993434]
[1736239837256,8.99963535,216.7,216.65,13.37380365]
[1736239837854,8.99963535,216.7,216.66,1.98869146]
[1736239838654,8.99963535,216.7,216.67,1.98869146]
[1736239839454,8.99963535,216.7,216.68,1.98869146]
[1736239839758,11.5345,216.74,216.68,1.98869146]
[1736239840051,8.99963535,216.69,216.68,1.98869146]
[1736239840247,8.99963535,216.69,216.65,45.0]
[1736239840448,11.5345,216.74,216.65,45.0]
[1736239840449,8.99963535,216.68,216.65,45.0]
[1736239840957,8.99963535,216.68,216.66,1.98782961]
[1736239841659,8.99963535,216.68,216.65,45.0]
[1736239842737,8.99963535,216.68,216.66,1.98737614]
[1736239843359,8.99963535,216.68,216.65,45.0]
[1736239844361,8.99963535,216.67,216.65,45.0]
[1736239844655,8.99963535,216.67,216.66,1.98799653]
[1736239844837,8.99963535,216.68,216.66,1.98799653]
[1736239845534,8.99963535,216.68,216.65,45.0]
[1736239846663,8.99963535,216.69,216.66,1.98790405]
[1736239847466,8.99963535,216.69,216.67,1.98790405]
[1736239847767,11.5345,216.74,216.67,1.98790405]
[1736239848063,8.99963535,216.69,216.67,1.98790405]
[1736239848262,8.99963535,216.69,216.65,45.0]
[1736239848742,8.99963535,216.69,216.66,1.98827045]
[1736239849351,8.99963535,216.7,216.67,1.98827045]
[1736239849866,8.99963535,216.7,216.65,45.0]
[1736239850655,8.99963535,216.7,216.66,1.98868954]
[1736239851355,8.99963535,216.7,216.67,1.98868954]
[1736239852143,8.99963535,216.7,216.65,45.0]
[1736239852544,8.99963535,216.7,216.66,1.98876145]
[1736239853044,8.99963535,216.7,216.67,1.98876145]
[1736239853852,8.99963535,216.71,216.65,53.99963535]
[1736239854876,8.99963535,216.71,216.66,1.9888595]
[1736239855347,8.99963535,216.71,216.67,1.9888595]
[1736239855677,8.99963535,216.69,216.67,1.9888595]
[1736239856171,8.99963535,216.69,216.63,16.216739]
[1736239856656,8.99963535,216.69,216.64,1.98887161]
[1736239857349,8.99963535,216.69,216.65,1.98887161]
[1736239858147,8.99963535,216.69,216.66,1.98887161]
[1736239858347,8.99963535,216.7,216.66,1.98887161]
[1736239858670,8.99963535,216.7,216.67,1.98887161]
[1736239859060,8.99963535,216.7,216.67,46.98887161]
[1736239859575,8.99963535,216.69,216.67,45.0]
[1736239861377,8.99963535,216.69,216.68,1.99014518]
[1736239863878,8.99963535,216.7,216.68,1.99014518]
[1736239864577,8.99963535,216.7,216.64,7.21710365]
[1736239864772,8.99963535,216.7,216.65,45.0]
[1736239864976,8.99963535,216.69,216.65,45.0]
[1736239865473,8.99963535,216.69,216.66,1.99123656]
[1736239866071,8.99963535,216.69,216.67,1.99123656]
[1736239866471,8.99963535,216.68,216.67,1.99123656]
[1736239866669,8.99963535,216.68,216.64,7.21710365]
[1736239867280,8.99963535,216.68,216.65,1.99245944]
[1736239867854,8.99963535,216.69,216.65,1.99245944]
[1736239868180,8.99963535,216.69,216.66,1.99245944]
[1736239868880,8.99963535,216.7,216.66,1.99245944]
[1736239869182,8.99963535,216.7,216.67,1.99245944]
[1736239869897,8.99963535,216.7,216.63,61.216739]
[1736239870384,8.99963535,216.7,216.64,1.99306807]
[1736239871161,8.99963535,216.7,216.65,1.99306807]
[1736239871485,8.99963535,216.69,216.65,1.99306807]
[1736239872088,8.99963535,216.68,216.66,1.99306807]
[1736239872569,8.99963535,216.68,216.67,1.99306807]
[1736239881116,8.99963535,216.68,216.62,7.21710365]
[1736239881394,8.99963535,216.65,216.63,1.99562956]
[1736239881594,8.99963535,216.65,216.63,4.2879126]
[1736239881792,8.99963535,216.65,216.64,1.99562956]
[1736239882193,8.99963535,216.65,216.64,4.2879126]
[1736239888192,8.99963535,216.65,216.64,1.99562956]
[1736239892013,8.99963535,216.66,216.64,1.99562956]
[1736239892519,8.99963535,216.66,216.61,52.21710365]
[1736239893017,8.99963535,216.66,216.62,1.99367914]
[1736239893915,8.99963535,216.66,216.63,1.99367914]
[1736239894515,8.99963535,216.66,216.64,1.99367914]
[1736239895289,8.99963535,216.66,216.61,52.21710365]
[1736239895921,8.99963535,216.66,216.62,1.99357155]
[1736239896615,8.99963535,216.66,216.63,1.99357155]
[1736239897507,8.99963535,216.66,216.64,1.99357155]
[1736239898223,8.99963535,216.66,216.65,1.99357155]
[1736239899216,1.94,216.7,216.65,1.99357155]
[1736239899420,8.99963535,216.66,216.65,1.99357155]
[1736239899621,8.99963535,216.66,216.61,52.21710365]
[1736239900094,8.99963535,216.66,216.62,1.99335661]
[1736239900922,8.99963535,216.66,216.63,1.99335661]
[1736239901526,8.99963535,216.65,216.63,1.99335661]
[1736239901702,8.99963535,216.65,216.64,1.99335661]
[1736239903643,1.5523,216.73,216.64,1.99335661]
[1736239903927,8.99963535,216.7,216.64,10.99299196]
[1736239904724,1.94,216.73,216.64,10.99299196]
[1736239904934,8.99963535,216.7,216.65,1.99335661]
[1736239905122,1.94,216.73,216.65,1.99335661]
[1736239905318,8.99963535,216.7,216.65,1.99335661]
[1736239905531,8.99963535,216.7,216.66,1.99335661]
[1736239906146,8.99963535,216.7,216.64,16.216739]
[1736239906522,11.5345,216.75,216.67,1.99223669]
[1736239906715,8.99963535,216.73,216.67,10.99187204]
[1736239907316,8.99963535,216.73,216.68,1.99223669]
[1736239908016,8.99963535,216.73,216.69,1.99223669]
[1736239908735,8.99963535,216.73,216.7,1.99223669]
[1736239909342,8.99963535,216.73,216.67,8.99963535]
[1736239909942,8.99963535,216.73,216.68,1.99148934]
[1736239910126,8.99963535,216.73,216.68,46.99148934]
[1736239910316,11.5345,216.75,216.68,46.99148934]
[1736239910516,8.99963535,216.73,216.68,46.99148934]
[1736239910718,8.99963535,216.73,216.69,1.99148934]
[1736239911330,8.99963535,216.73,216.67,8.99963535]
[1736239911842,8.99963535,216.73,216.68,1.99144624]
[1736239912438,8.99963535,216.73,216.69,1.99144624]
[1736239913335,8.99963535,216.73,216.67,8.99963535]
[1736239913537,11.5345,216.75,216.67,8.99963535]
[1736239913724,8.99963535,216.73,216.67,8.99963535]
[1736239914052,8.99963535,216.73,216.69,45.0]
[1736239917251,8.99963535,216.72,216.69,45.0]
[1736239919142,1.5936,216.78,216.69,45.0]
[1736239919347,8.99963535,216.74,216.69,45.0]
[1736239919831,8.99963535,216.74,216.7,1.99024624]
[1736239920243,8.99963535,216.74,216.69,45.0]
[1736239920647,8.99963535,216.73,216.69,45.0]
[1736239921849,8.99963535,216.73,216.7,1.99019683]
[1736239922250,8.99963535,216.73,216.69,45.0]
[1736239924020,8.99963535,216.71,216.69,45.0]
[1736239924226,8.99963535,216.7,216.66,13.60510365]
[1736239924448,8.99963535,216.68,216.66,7.21710365]
[1736239924761,8.99963535,216.68,216.64,7.21710365]
[1736239925061,8.99963535,216.68,216.63,17.843739]
[1736239925453,8.99963535,216.69,216.63,17.843739]
[1736239925754,8.99963535,216.69,216.64,1.9894647]
[1736239926050,8.99963535,216.68,216.64,1.9894647]
[1736239926247,8.99963535,216.68,216.65,1.9894647]
[1736239926448,8.99963535,216.69,216.65,1.9894647]
[1736239926831,8.99963535,216.69,216.63,10.62663535]
[1736239927349,8.99963535,216.69,216.64,1.98979194]
[1736239927846,8.99963535,216.69,216.65,1.98979194]
[1736239928246,8.99963535,216.69,216.63,10.62663535]
[1736239928758,8.99963535,216.68,216.63,1.627]
[1736239928954,8.99963535,216.68,216.64,1.98988214]